[Event "Titled Tuesday Blitz May 9 Late 2023"]
[White "Chemin, Justo Reinaldo"]
[Black "Martinez Reyes, Pedro Ramon"]
[WhiteFideId "2101580"]
[BlackFideId "3901807"]
[WhiteElo "1940"]
[BlackElo "2340"]
[Result "0-1"]
[Round "01"]
[TimeControl "180+2"]
[Date "2023.05.09"]
[WhiteClock "0:00:00"]
[BlackClock "0:00:42"]

1. e4 {[%clk 0:02:58]}  c6 {[%clk 0:02:59]} 2. d4 {[%clk 0:02:57]}  g6 {[%clk 0:02:59]} 3. Nc3 {[%clk 0:02:56]}  Bg7 {[%clk 0:02:57]} 4. f4 {[%clk 0:02:56]}  d5 {[%clk 0:02:56]} 5. e5 {[%clk 0:02:55]}  h5 {[%clk 0:02:56]} 6. Bd3 {[%clk 0:02:51]}  Nh6 {[%clk 0:02:55]} 7. Nf3 {[%clk 0:02:50]}  Bf5 {[%clk 0:02:55]} 8. Ng5 {[%clk 0:02:43]}  e6 {[%clk 0:02:49]} 9. O-O {[%clk 0:02:38]}  Nd7 {[%clk 0:02:38]} 10. h3 {[%clk 0:02:38]}  Bxd3 {[%clk 0:02:34]} 11. Qxd3 {[%clk 0:02:36]}  Nf5 {[%clk 0:02:30]} 12. g4 {[%clk 0:02:26]}  hxg4 {[%clk 0:02:20]} 13. hxg4 {[%clk 0:02:26]}  Nh6 {[%clk 0:02:15]} 14. Qf3 {[%clk 0:02:14]}  Qe7 {[%clk 0:02:02]} 15. Be3 {[%clk 0:02:11]}  O-O-O {[%clk 0:02:02]} 16. a4 {[%clk 0:02:10]}  f6 {[%clk 0:01:55]} 17. exf6 {[%clk 0:02:04]}  Nxf6 {[%clk 0:01:54]} 18. a5 {[%clk 0:01:45]}  Nfxg4 {[%clk 0:01:53]} 19. a6 {[%clk 0:01:45]}  b6 {[%clk 0:01:43]} 20. Rfe1 {[%clk 0:01:35]}  Nxe3 {[%clk 0:01:37]} 21. Qxe3 {[%clk 0:01:30]}  Rd6 {[%clk 0:01:27]} 22. Ne2 {[%clk 0:01:03]}  Nf5 {[%clk 0:01:24]} 23. Qd3 {[%clk 0:01:03]}  Bf6 {[%clk 0:01:22]} 24. Nf3 {[%clk 0:01:01]}  Qh7 {[%clk 0:01:20]} 25. Kf2 {[%clk 0:00:48]}  Bh4+ {[%clk 0:01:20]} 26. Kg2 {[%clk 0:00:43]}  Bxe1 {[%clk 0:01:19]} 27. Rxe1 {[%clk 0:00:38]}  Qh3+ {[%clk 0:01:11]} 28. Kf2 {[%clk 0:00:36]}  Nh4 {[%clk 0:01:00]} 29. Nxh4 {[%clk 0:00:30]}  Qxh4+ {[%clk 0:00:59]} 30. Qg3 {[%clk 0:00:30]}  c5 {[%clk 0:00:52]} 31. Qxh4 {[%clk 0:00:26]}  Rxh4 {[%clk 0:00:51]} 32. Kg3 {[%clk 0:00:26]}  Rh5 {[%clk 0:00:48]} 33. c3 {[%clk 0:00:23]}  c4 {[%clk 0:00:45]} 34. Ng1 {[%clk 0:00:23]}  b5 {[%clk 0:00:44]} 35. Nf3 {[%clk 0:00:22]}  Rxa6 {[%clk 0:00:43]} 36. Ng5 {[%clk 0:00:20]}  Kd7 {[%clk 0:00:42]} 37. Nf7 {[%clk 0:00:19]}  Ra2 {[%clk 0:00:42]} 38. Re2 {[%clk 0:00:19]}  a5 {[%clk 0:00:41]} 39. Ne5+ {[%clk 0:00:19]}  Rxe5 {[%clk 0:00:42]} 40. fxe5 {[%clk 0:00:14]}  b4 {[%clk 0:00:42]} 41. cxb4 {[%clk 0:00:08]}  axb4 {[%clk 0:00:43]} 42. Rf2 {[%clk 0:00:06]}  c3 {[%clk 0:00:42]} 43. Rf7+ {[%clk 0:00:01]}  Ke8 {[%clk 0:00:42]} 44. Rc7 {[%clk 0:00:00]}  cxb2 {[%clk 0:00:42]} 0-1


[Site "https://www.chess.com"]

[Event "Titled Tuesday Blitz May 9 Late 2023"]
[White "Atanasov, Anthony"]
[Black "Barria Santos, Jose Guilherme"]
[WhiteFideId "2623897"]
[BlackFideId "1939300"]
[WhiteElo "2326"]
[BlackElo "2266"]
[Result "1-0"]
[Round "01"]
[TimeControl "180+2"]
[Date "2023.05.09"]
[WhiteClock "0:01:08"]
[BlackClock "0:01:23"]

1. d4 {[%clk 0:02:00]}  Nf6 {[%clk 0:02:59]} 2. Nf3 {[%clk 0:02:00]}  g6 {[%clk 0:02:59]} 3. c3 {[%clk 0:01:58]}  Bg7 {[%clk 0:02:59]} 4. Bf4 {[%clk 0:01:59]}  O-O {[%clk 0:03:00]} 5. e3 {[%clk 0:01:59]}  d6 {[%clk 0:03:00]} 6. Nbd2 {[%clk 0:02:00]}  c5 {[%clk 0:02:58]} 7. Be2 {[%clk 0:02:00]}  Nc6 {[%clk 0:02:57]} 8. O-O {[%clk 0:01:59]}  b6 {[%clk 0:02:54]} 9. a4 {[%clk 0:01:59]}  Bb7 {[%clk 0:02:54]} 10. h3 {[%clk 0:01:58]}  Rc8 {[%clk 0:02:53]} 11. Nc4 {[%clk 0:01:58]}  cxd4 {[%clk 0:02:49]} 12. exd4 {[%clk 0:01:59]}  Ba6 {[%clk 0:02:44]} 13. Ne3 {[%clk 0:01:55]}  Bxe2 {[%clk 0:02:44]} 14. Qxe2 {[%clk 0:01:56]}  Na5 {[%clk 0:02:41]} 15. Rfe1 {[%clk 0:01:54]}  Re8 {[%clk 0:02:29]} 16. Bh2 {[%clk 0:01:52]}  Ne4 {[%clk 0:02:09]} 17. Nd5 {[%clk 0:01:39]}  f5 {[%clk 0:01:58]} 18. Rad1 {[%clk 0:01:33]}  e6 {[%clk 0:01:56]} 19. Nf4 {[%clk 0:01:31]}  Nc4 {[%clk 0:01:52]} 20. d5 {[%clk 0:01:26]}  Nxb2 {[%clk 0:01:43]} 21. Qxb2 {[%clk 0:01:23]}  Bxc3 {[%clk 0:01:43]} 22. Qb3 {[%clk 0:01:22]}  Bxe1 {[%clk 0:01:36]} 23. Rxe1 {[%clk 0:01:17]}  Rc3 {[%clk 0:01:35]} 24. Qb2 {[%clk 0:01:11]}  Qc8 {[%clk 0:01:24]} 25. Nxe6 {[%clk 0:01:09]}  Rc2 {[%clk 0:01:23]} 26. Qg7# {[%clk 0:01:08]} 1-0


[Site "https://www.chess.com"]

[Event "Titled Tuesday Blitz May 9 Late 2023"]
[White "rikchessmx"]
[Black "Suder, Jakub"]
[BlackFideId "1195310"]
[WhiteElo "2179"]
[BlackElo "2287"]
[Result "0-1"]
[Round "01"]
[TimeControl "180+2"]
[Date "2023.05.09"]
[WhiteClock "0:01:31"]
[BlackClock "0:01:46"]

1. e4 {[%clk 0:02:57]}  c5 {[%clk 0:02:57]} 2. Nf3 {[%clk 0:02:57]}  e6 {[%clk 0:02:57]} 3. d4 {[%clk 0:02:57]}  cxd4 {[%clk 0:02:58]} 4. Nxd4 {[%clk 0:02:58]}  Nc6 {[%clk 0:02:59]} 5. Nxc6 {[%clk 0:02:57]}  bxc6 {[%clk 0:02:58]} 6. Nc3 {[%clk 0:02:58]}  Nf6 {[%clk 0:02:57]} 7. Bd3 {[%clk 0:02:58]}  d5 {[%clk 0:02:57]} 8. O-O {[%clk 0:02:59]}  Be7 {[%clk 0:02:57]} 9. Qe2 {[%clk 0:02:59]}  O-O {[%clk 0:02:56]} 10. b3 {[%clk 0:02:57]}  Qa5 {[%clk 0:02:48]} 11. Bb2 {[%clk 0:02:56]}  Ba3 {[%clk 0:02:47]} 12. Bxa3 {[%clk 0:02:49]}  Qxa3 {[%clk 0:02:47]} 13. e5 {[%clk 0:02:48]}  Nd7 {[%clk 0:02:47]} 14. Na4 {[%clk 0:02:48]}  Nb6 {[%clk 0:02:32]} 15. Nxb6 {[%clk 0:02:48]}  axb6 {[%clk 0:02:31]} 16. f4 {[%clk 0:02:45]}  Ba6 {[%clk 0:02:31]} 17. c4 {[%clk 0:02:45]}  dxc4 {[%clk 0:02:29]} 18. bxc4 {[%clk 0:02:45]}  Rad8 {[%clk 0:02:25]} 19. Rf3 {[%clk 0:02:45]}  Qc5+ {[%clk 0:02:21]} 20. Kh1 {[%clk 0:02:40]}  g6 {[%clk 0:02:20]} 21. Rc1 {[%clk 0:02:32]}  Rd4 {[%clk 0:02:18]} 22. Rh3 {[%clk 0:02:28]}  Rfd8 {[%clk 0:02:17]} 23. a4 {[%clk 0:02:14]}  Rxf4 {[%clk 0:02:14]} 24. Rf1 {[%clk 0:01:52]}  Rxf1+ {[%clk 0:02:10]} 25. Qxf1 {[%clk 0:01:52]}  Bxc4 {[%clk 0:02:09]} 26. Bxc4 {[%clk 0:01:45]}  Qxc4 {[%clk 0:02:06]} 27. Qe1 {[%clk 0:01:42]}  Qe4 {[%clk 0:02:01]} 28. Qa1 {[%clk 0:01:40]}  Qxe5 {[%clk 0:01:57]} 29. Qb1 {[%clk 0:01:37]}  Qb2 {[%clk 0:01:52]} 30. Qf1 {[%clk 0:01:36]}  Qc2 {[%clk 0:01:47]} 31. Rf3 {[%clk 0:01:31]}  Rd1 {[%clk 0:01:46]} 0-1


[Site "https://www.chess.com"]

[Event "Titled Tuesday Blitz May 9 Late 2023"]
[White "Altman, Joshua"]
[Black "Djordjevic, Dejan N"]
[WhiteFideId "426210"]
[BlackFideId "913316"]
[WhiteElo "2028"]
[BlackElo "2261"]
[Result "0-1"]
[Round "01"]
[TimeControl "180+2"]
[Date "2023.05.09"]
[WhiteClock "0:00:21"]
[BlackClock "0:00:04"]

1. d4 {[%clk 0:02:58]}  Nf6 {[%clk 0:02:52]} 2. c4 {[%clk 0:02:58]}  g6 {[%clk 0:02:52]} 3. Nc3 {[%clk 0:02:58]}  Bg7 {[%clk 0:02:53]} 4. Nf3 {[%clk 0:02:58]}  d6 {[%clk 0:02:54]} 5. Bg5 {[%clk 0:02:58]}  O-O {[%clk 0:02:54]} 6. e3 {[%clk 0:02:59]}  Nc6 {[%clk 0:02:54]} 7. Be2 {[%clk 0:02:59]}  a6 {[%clk 0:02:55]} 8. O-O {[%clk 0:02:59]}  Bd7 {[%clk 0:02:55]} 9. h3 {[%clk 0:02:57]}  e5 {[%clk 0:02:55]} 10. dxe5 {[%clk 0:02:54]}  dxe5 {[%clk 0:02:54]} 11. Nd5 {[%clk 0:02:49]}  Re8 {[%clk 0:02:50]} 12. Nxf6+ {[%clk 0:02:40]}  Bxf6 {[%clk 0:02:47]} 13. Bxf6 {[%clk 0:02:40]}  Qxf6 {[%clk 0:02:47]} 14. Qxd7 {[%clk 0:02:38]}  e4 {[%clk 0:02:45]} 15. Nh2 {[%clk 0:02:27]}  Qxb2 {[%clk 0:02:43]} 16. Rfe1 {[%clk 0:02:17]}  Rac8 {[%clk 0:02:36]} 17. Ng4 {[%clk 0:02:15]}  Red8 {[%clk 0:02:34]} 18. Nh6+ {[%clk 0:02:08]}  Kg7 {[%clk 0:02:32]} 19. Qxf7+ {[%clk 0:02:02]}  Kxh6 {[%clk 0:02:32]} 20. Qf4+ {[%clk 0:01:55]}  Kg7 {[%clk 0:02:31]} 21. Qxe4 {[%clk 0:01:55]}  Qf6 {[%clk 0:02:17]} 22. Rab1 {[%clk 0:01:53]}  b6 {[%clk 0:02:14]} 23. Bg4 {[%clk 0:01:47]}  Rb8 {[%clk 0:02:01]} 24. Rbd1 {[%clk 0:01:44]}  Ne5 {[%clk 0:01:59]} 25. Rd5 {[%clk 0:01:38]}  Re8 {[%clk 0:01:48]} 26. Qd4 {[%clk 0:01:29]}  Re7 {[%clk 0:01:44]} 27. Rd1 {[%clk 0:01:25]}  Rf8 {[%clk 0:01:42]} 28. Rd2 {[%clk 0:00:58]}  h5 {[%clk 0:01:15]} 29. Bd1 {[%clk 0:00:50]}  Kh7 {[%clk 0:01:03]} 30. c5 {[%clk 0:00:45]}  b5 {[%clk 0:00:58]} 31. Bc2 {[%clk 0:00:38]}  Qg5 {[%clk 0:00:40]} 32. f4 {[%clk 0:00:25]}  Nf3+ {[%clk 0:00:39]} 33. Kf2 {[%clk 0:00:20]}  Nxd4 {[%clk 0:00:33]} 34. Rxg5 {[%clk 0:00:20]}  Nxc2 {[%clk 0:00:32]} 35. Rxc2 {[%clk 0:00:21]}  Rfe8 {[%clk 0:00:25]} 36. Rc3 {[%clk 0:00:19]}  Kh6 {[%clk 0:00:22]} 37. c6 {[%clk 0:00:18]}  Rd8 {[%clk 0:00:20]} 38. Kf3 {[%clk 0:00:16]}  Rd2 {[%clk 0:00:19]} 39. a3 {[%clk 0:00:13]}  Rf7 {[%clk 0:00:15]} 40. Re5 {[%clk 0:00:12]}  Kg7 {[%clk 0:00:13]} 41. g4 {[%clk 0:00:12]}  hxg4+ {[%clk 0:00:12]} 42. hxg4 {[%clk 0:00:13]}  Rh2 {[%clk 0:00:12]} 43. g5 {[%clk 0:00:13]}  Rd2 {[%clk 0:00:10]} 44. e4 {[%clk 0:00:08]}  Kf8 {[%clk 0:00:08]} 45. f5 {[%clk 0:00:08]}  Rh7 {[%clk 0:00:05]} 46. Ke3 {[%clk 0:00:05]}  Rd6 {[%clk 0:00:02]} 47. f6 {[%clk 0:00:05]}  Rh3+ {[%clk 0:00:01]} 48. Kf4 {[%clk 0:00:04]}  Rxc3 {[%clk 0:00:01]} 49. Rd5 {[%clk 0:00:05]}  Rxd5 {[%clk 0:00:01]} 50. exd5 {[%clk 0:00:06]}  Kf7 {[%clk 0:00:01]} 51. d6 {[%clk 0:00:07]}  cxd6 {[%clk 0:00:01]} 52. c7 {[%clk 0:00:08]}  Rxc7 {[%clk 0:00:01]} 53. Ke4 {[%clk 0:00:08]}  Rc5 {[%clk 0:00:01]} 54. Kd4 {[%clk 0:00:09]}  Rxg5 {[%clk 0:00:01]} 55. Kc3 {[%clk 0:00:10]}  Kxf6 {[%clk 0:00:02]} 56. Kb4 {[%clk 0:00:11]}  Rf5 {[%clk 0:00:02]} 57. Ka5 {[%clk 0:00:12]}  Rf3 {[%clk 0:00:02]} 58. Kb6 {[%clk 0:00:13]}  Rxa3 {[%clk 0:00:02]} 59. Kb7 {[%clk 0:00:13]}  b4 {[%clk 0:00:02]} 60. Ka8 {[%clk 0:00:14]}  b3 {[%clk 0:00:03]} 61. Ka7 {[%clk 0:00:15]}  b2 {[%clk 0:00:03]} 62. Ka8 {[%clk 0:00:16]}  b1=Q {[%clk 0:00:04]} 63. Ka7 {[%clk 0:00:17]}  Ra2 {[%clk 0:00:04]} 64. Ka8 {[%clk 0:00:18]}  Rc2 {[%clk 0:00:04]} 65. Ka7 {[%clk 0:00:19]}  Qb5 {[%clk 0:00:04]} 66. Ka8 {[%clk 0:00:19]}  Rc8+ {[%clk 0:00:04]} 67. Ka7 {[%clk 0:00:20]}  Qc5+ {[%clk 0:00:04]} 68. Kb7 {[%clk 0:00:20]}  Rc7+ {[%clk 0:00:04]} 69. Kb8 {[%clk 0:00:21]}  Qa7# {[%clk 0:00:04]} 0-1


[Site "https://www.chess.com"]

[Event "Titled Tuesday Blitz May 9 Late 2023"]
[White "Van Baar, Esper"]
[Black "Tologon tegin, Semetei"]
[WhiteFideId "1049321"]
[BlackFideId "13800574"]
[WhiteElo "2169"]
[BlackElo "2247"]
[Result "1/2-1/2"]
[Round "01"]
[TimeControl "180+2"]
[Date "2023.05.09"]
[WhiteClock "0:00:05"]
[BlackClock "0:00:11"]

1. e4 {[%clk 0:02:58]}  c5 {[%clk 0:02:57]} 2. Nf3 {[%clk 0:02:58]}  d6 {[%clk 0:02:58]} 3. Bb5+ {[%clk 0:02:59]}  Bd7 {[%clk 0:02:56]} 4. Bxd7+ {[%clk 0:02:59]}  Qxd7 {[%clk 0:02:57]} 5. c4 {[%clk 0:02:59]}  Nc6 {[%clk 0:02:56]} 6. d4 {[%clk 0:02:58]}  cxd4 {[%clk 0:02:56]} 7. Nxd4 {[%clk 0:02:59]}  g6 {[%clk 0:02:56]} 8. Be3 {[%clk 0:02:55]}  Bg7 {[%clk 0:02:56]} 9. f3 {[%clk 0:02:55]}  Nf6 {[%clk 0:02:56]} 10. O-O {[%clk 0:02:54]}  O-O {[%clk 0:02:56]} 11. Nc3 {[%clk 0:02:53]}  Rfd8 {[%clk 0:02:52]} 12. Rc1 {[%clk 0:02:49]}  e6 {[%clk 0:02:52]} 13. Qe2 {[%clk 0:02:46]}  d5 {[%clk 0:02:51]} 14. cxd5 {[%clk 0:02:27]}  exd5 {[%clk 0:02:51]} 15. Rfd1 {[%clk 0:01:54]}  Qe8 {[%clk 0:02:18]} 16. Nxc6 {[%clk 0:01:27]}  bxc6 {[%clk 0:02:19]} 17. Bd4 {[%clk 0:01:07]}  dxe4 {[%clk 0:02:16]} 18. Bxf6 {[%clk 0:01:01]}  Bxf6 {[%clk 0:02:16]} 19. Nxe4 {[%clk 0:01:01]}  Bg7 {[%clk 0:01:54]} 20. b3 {[%clk 0:00:47]}  Rxd1+ {[%clk 0:01:41]} 21. Rxd1 {[%clk 0:00:46]}  c5 {[%clk 0:01:37]} 22. Qc4 {[%clk 0:00:36]}  Rd8 {[%clk 0:01:23]} 23. Rd5 {[%clk 0:00:26]}  Rxd5 {[%clk 0:00:59]} 24. Qxd5 {[%clk 0:00:27]}  Qe7 {[%clk 0:01:00]} 25. Kf1 {[%clk 0:00:22]}  Bd4 {[%clk 0:01:00]} 26. Qd6 {[%clk 0:00:18]}  Qb7 {[%clk 0:00:52]} 27. Nf6+ {[%clk 0:00:16]}  Kg7 {[%clk 0:00:40]} 28. Ne8+ {[%clk 0:00:13]}  Kh6 {[%clk 0:00:40]} 29. Qf4+ {[%clk 0:00:12]}  g5 {[%clk 0:00:39]} 30. Qd6+ {[%clk 0:00:11]}  f6 {[%clk 0:00:31]} 31. Nxf6 {[%clk 0:00:01]}  Qb5+ {[%clk 0:00:30]} 32. Ke1 {[%clk 0:00:02]}  Qa5+ {[%clk 0:00:15]} 33. Kd1 {[%clk 0:00:02]}  Qxa2 {[%clk 0:00:11]} 34. Ng4+ {[%clk 0:00:02]}  Kg7 {[%clk 0:00:11]} 35. Qd7+ {[%clk 0:00:02]}  Kg6 {[%clk 0:00:11]} 36. Qe6+ {[%clk 0:00:03]}  Kg7 {[%clk 0:00:11]} 37. Qe7+ {[%clk 0:00:03]}  Kg6 {[%clk 0:00:11]} 38. Qe6+ {[%clk 0:00:04]}  Kg7 {[%clk 0:00:11]} 39. Qe7+ {[%clk 0:00:04]}  Kg6 {[%clk 0:00:11]} 40. Qe6+ {[%clk 0:00:05]} 1/2-1/2


[Site "https://www.chess.com"]

[Event "Titled Tuesday Blitz May 9 Late 2023"]
[White "KSho99"]
[Black "Danielyan, Vahe"]
[BlackFideId "13304828"]
[WhiteElo "2154"]
[BlackElo "2423"]
[Result "0-1"]
[Round "01"]
[TimeControl "180+2"]
[Date "2023.05.09"]
[WhiteClock "0:00:00"]
[BlackClock "0:01:19"]

1. Nf3 {[%clk 0:03:00]}  d6 {[%clk 0:02:58]} 2. d4 {[%clk 0:03:00]}  Bg4 {[%clk 0:02:56]} 3. e4 {[%clk 0:02:53]}  Nd7 {[%clk 0:02:55]} 4. Bc4 {[%clk 0:02:46]}  e6 {[%clk 0:02:54]} 5. Be3 {[%clk 0:02:40]}  Ngf6 {[%clk 0:02:52]} 6. Nbd2 {[%clk 0:02:38]}  Be7 {[%clk 0:02:52]} 7. h3 {[%clk 0:02:28]}  Bh5 {[%clk 0:02:51]} 8. Bd3 {[%clk 0:02:20]}  O-O {[%clk 0:02:50]} 9. c4 {[%clk 0:02:15]}  c5 {[%clk 0:02:50]} 10. d5 {[%clk 0:02:13]}  exd5 {[%clk 0:02:47]} 11. exd5 {[%clk 0:02:08]}  Re8 {[%clk 0:02:47]} 12. O-O {[%clk 0:02:02]}  Bf8 {[%clk 0:02:45]} 13. Qb3 {[%clk 0:01:57]}  Rb8 {[%clk 0:02:43]} 14. Bf4 {[%clk 0:01:43]}  a6 {[%clk 0:02:38]} 15. a4 {[%clk 0:01:37]}  Bg6 {[%clk 0:02:38]} 16. Bxg6 {[%clk 0:01:32]}  hxg6 {[%clk 0:02:39]} 17. Rfe1 {[%clk 0:01:28]}  Nh5 {[%clk 0:02:40]} 18. Bh2 {[%clk 0:01:23]}  Rxe1+ {[%clk 0:02:33]} 19. Rxe1 {[%clk 0:01:23]}  Nhf6 {[%clk 0:02:29]} 20. Qd3 {[%clk 0:01:06]}  Qb6 {[%clk 0:02:23]} 21. b3 {[%clk 0:01:05]}  Qb4 {[%clk 0:02:20]} 22. Ne4 {[%clk 0:00:49]}  Nxe4 {[%clk 0:02:19]} 23. Rxe4 {[%clk 0:00:49]}  Nf6 {[%clk 0:02:19]} 24. Re3 {[%clk 0:00:41]}  b5 {[%clk 0:02:19]} 25. axb5 {[%clk 0:00:39]}  axb5 {[%clk 0:02:20]} 26. Ng5 {[%clk 0:00:36]}  bxc4 {[%clk 0:02:18]} 27. bxc4 {[%clk 0:00:34]}  Qb1+ {[%clk 0:02:06]} 28. Qf1 {[%clk 0:00:34]}  Qa2 {[%clk 0:02:03]} 29. Re1 {[%clk 0:00:18]}  Rb4 {[%clk 0:02:02]} 30. Rc1 {[%clk 0:00:18]}  Rb2 {[%clk 0:01:41]} 31. Bg3 {[%clk 0:00:15]}  Nh5 {[%clk 0:01:41]} 32. Bh2 {[%clk 0:00:15]}  Nf6 {[%clk 0:01:30]} 33. Bg3 {[%clk 0:00:15]}  Rc2 {[%clk 0:01:28]} 34. Rxc2 {[%clk 0:00:11]}  Qxc2 {[%clk 0:01:29]} 35. Nf3 {[%clk 0:00:08]}  Ne4 {[%clk 0:01:27]} 36. Bh2 {[%clk 0:00:07]}  Be7 {[%clk 0:01:27]} 37. Bf4 {[%clk 0:00:03]}  Bf6 {[%clk 0:01:25]} 38. Qc1 {[%clk 0:00:00]}  Qd3 {[%clk 0:01:19]} 0-1


[Site "https://www.chess.com"]

[Event "Titled Tuesday Blitz May 9 Late 2023"]
[White "Sanhueza, Cristian"]
[Black "Oliveira, Tiago Batista"]
[WhiteFideId "116815"]
[BlackFideId "2108291"]
[WhiteElo "2174"]
[BlackElo "1962"]
[Result "1-0"]
[Round "01"]
[TimeControl "180+2"]
[Date "2023.05.09"]
[WhiteClock "0:01:37"]
[BlackClock "0:00:00"]

1. e4 {[%clk 0:03:00]}  c5 {[%clk 0:02:58]} 2. Nf3 {[%clk 0:02:59]}  Nc6 {[%clk 0:02:53]} 3. d4 {[%clk 0:02:58]}  cxd4 {[%clk 0:02:53]} 4. Nxd4 {[%clk 0:02:59]}  Nf6 {[%clk 0:02:52]} 5. Nc3 {[%clk 0:02:58]}  d6 {[%clk 0:02:50]} 6. Bg5 {[%clk 0:02:57]}  e6 {[%clk 0:02:45]} 7. Qd2 {[%clk 0:02:57]}  Be7 {[%clk 0:02:45]} 8. O-O-O {[%clk 0:02:57]}  Nxd4 {[%clk 0:02:46]} 9. Qxd4 {[%clk 0:02:57]}  O-O {[%clk 0:02:46]} 10. f3 {[%clk 0:02:57]}  Qa5 {[%clk 0:02:45]} 11. h4 {[%clk 0:02:52]}  Rd8 {[%clk 0:02:32]} 12. Kb1 {[%clk 0:02:50]}  a6 {[%clk 0:02:10]} 13. Bc4 {[%clk 0:02:41]}  b5 {[%clk 0:02:09]} 14. Bb3 {[%clk 0:02:42]}  Qc7 {[%clk 0:02:05]} 15. g4 {[%clk 0:02:40]}  Bd7 {[%clk 0:01:59]} 16. h5 {[%clk 0:02:37]}  h6 {[%clk 0:01:00]} 17. Bc1 {[%clk 0:02:36]}  b4 {[%clk 0:00:49]} 18. Ne2 {[%clk 0:02:30]}  Nh7 {[%clk 0:00:36]} 19. Rdg1 {[%clk 0:02:15]}  a5 {[%clk 0:00:35]} 20. f4 {[%clk 0:02:08]}  a4 {[%clk 0:00:35]} 21. Bc4 {[%clk 0:02:08]}  Rac8 {[%clk 0:00:35]} 22. Bd3 {[%clk 0:02:08]}  b3 {[%clk 0:00:35]} 23. g5 {[%clk 0:01:58]}  hxg5 {[%clk 0:00:31]} 24. fxg5 {[%clk 0:01:58]}  bxc2+ {[%clk 0:00:27]} 25. Ka1 {[%clk 0:01:58]}  e5 {[%clk 0:00:26]} 26. Qe3 {[%clk 0:01:51]}  Qc5 {[%clk 0:00:21]} 27. g6 {[%clk 0:01:48]}  Nf6 {[%clk 0:00:14]} 28. Qg5 {[%clk 0:01:38]}  fxg6 {[%clk 0:00:13]} 29. Qxg6 {[%clk 0:01:38]}  Ne8 {[%clk 0:00:00]} 30. h6 {[%clk 0:01:37]} 1-0


[Site "https://www.chess.com"]

[Event "Titled Tuesday Blitz May 9 Late 2023"]
[White "Sailer, Mike"]
[Black "Defend1r"]
[WhiteFideId "2012901"]
[WhiteElo "2109"]
[BlackElo "2543"]
[Result "0-1"]
[Round "01"]
[TimeControl "180+2"]
[Date "2023.05.09"]
[WhiteClock "0:00:07"]
[BlackClock "0:01:03"]

1. d4 {[%clk 0:03:00]}  Nf6 {[%clk 0:02:59]} 2. Bg5 {[%clk 0:02:59]}  d5 {[%clk 0:02:59]} 3. Bxf6 {[%clk 0:02:59]}  exf6 {[%clk 0:03:00]} 4. e3 {[%clk 0:03:00]}  Bd6 {[%clk 0:02:51]} 5. c4 {[%clk 0:02:59]}  Be6 {[%clk 0:02:49]} 6. cxd5 {[%clk 0:02:57]}  Bxd5 {[%clk 0:02:50]} 7. Nc3 {[%clk 0:02:58]}  Be6 {[%clk 0:02:48]} 8. Bd3 {[%clk 0:02:54]}  c6 {[%clk 0:02:48]} 9. Nge2 {[%clk 0:02:46]}  f5 {[%clk 0:02:45]} 10. O-O {[%clk 0:02:46]}  h5 {[%clk 0:02:45]} 11. Qc2 {[%clk 0:02:37]}  g6 {[%clk 0:02:35]} 12. Nf4 {[%clk 0:02:30]}  Bxf4 {[%clk 0:02:30]} 13. exf4 {[%clk 0:02:30]}  Qxd4 {[%clk 0:02:30]} 14. Rad1 {[%clk 0:01:58]}  Qf6 {[%clk 0:02:28]} 15. Rfe1 {[%clk 0:01:50]}  O-O {[%clk 0:02:28]} 16. Ne2 {[%clk 0:01:46]}  Nd7 {[%clk 0:02:23]} 17. Bc4 {[%clk 0:01:39]}  Bxc4 {[%clk 0:02:22]} 18. Qxc4 {[%clk 0:01:39]}  Nb6 {[%clk 0:02:21]} 19. Qb3 {[%clk 0:01:35]}  Rad8 {[%clk 0:02:19]} 20. Nc1 {[%clk 0:01:26]}  Rxd1 {[%clk 0:02:16]} 21. Rxd1 {[%clk 0:01:26]}  Re8 {[%clk 0:02:14]} 22. Nd3 {[%clk 0:01:23]}  Qd4 {[%clk 0:02:10]} 23. Ne5 {[%clk 0:01:13]}  Rxe5 {[%clk 0:02:04]} 24. fxe5 {[%clk 0:01:09]}  Qxe5 {[%clk 0:02:05]} 25. Rd8+ {[%clk 0:00:58]}  Kg7 {[%clk 0:02:05]} 26. Qc3 {[%clk 0:00:58]}  Qxc3 {[%clk 0:01:57]} 27. bxc3 {[%clk 0:00:59]}  Na4 {[%clk 0:01:50]} 28. Rd7 {[%clk 0:00:54]}  Nxc3 {[%clk 0:01:40]} 29. Rxb7 {[%clk 0:00:53]}  Nxa2 {[%clk 0:01:40]} 30. Rxa7 {[%clk 0:00:53]}  Nb4 {[%clk 0:01:36]} 31. Rc7 {[%clk 0:00:50]}  Kf6 {[%clk 0:01:35]} 32. Kf1 {[%clk 0:00:50]}  Ke6 {[%clk 0:01:32]} 33. Ke2 {[%clk 0:00:50]}  h4 {[%clk 0:01:31]} 34. Kd2 {[%clk 0:00:48]}  g5 {[%clk 0:01:30]} 35. Rb7 {[%clk 0:00:41]}  Nd5 {[%clk 0:01:29]} 36. Kd3 {[%clk 0:00:38]}  Nf4+ {[%clk 0:01:29]} 37. Kd4 {[%clk 0:00:36]}  Nxg2 {[%clk 0:01:28]} 38. Kc5 {[%clk 0:00:33]}  Ne1 {[%clk 0:01:23]} 39. Rb3 {[%clk 0:00:28]}  f4 {[%clk 0:01:16]} 40. Kxc6 {[%clk 0:00:27]}  g4 {[%clk 0:01:15]} 41. Kc5 {[%clk 0:00:26]}  Nf3 {[%clk 0:01:15]} 42. Rb6+ {[%clk 0:00:21]}  Kf5 {[%clk 0:01:11]} 43. Rb7 {[%clk 0:00:21]}  f6 {[%clk 0:01:11]} 44. Kd6 {[%clk 0:00:19]}  Nxh2 {[%clk 0:01:10]} 45. Rb5+ {[%clk 0:00:19]}  Kg6 {[%clk 0:01:09]} 46. Ke7 {[%clk 0:00:18]}  g3 {[%clk 0:01:08]} 47. fxg3 {[%clk 0:00:14]}  hxg3 {[%clk 0:01:08]} 48. Rb6 {[%clk 0:00:14]}  g2 {[%clk 0:01:06]} 49. Rxf6+ {[%clk 0:00:13]}  Kg5 {[%clk 0:01:06]} 50. Kf7 {[%clk 0:00:14]}  Ng4 {[%clk 0:01:05]} 51. Rg6+ {[%clk 0:00:14]}  Kh4 {[%clk 0:01:05]} 52. Ke6 {[%clk 0:00:13]}  g1=Q {[%clk 0:01:04]} 53. Kf5 {[%clk 0:00:11]}  Qb1+ {[%clk 0:01:03]} 54. Kxf4 {[%clk 0:00:07]}  Qxg6 {[%clk 0:01:03]} 0-1


[Site "https://www.chess.com"]